bitfinex-derivatives/quotes_BTCF0:USTF0_20250812
["timestamp","ask_amount","ask_price","bid_price","bid_amount"]
[1755030332302,2.42119995,119970.0,119960.0,0.24564696]
[1755030332502,2.33784915,119970.0,119960.0,0.24564696]
[1755030332705,1.96258127,119970.0,119960.0,0.24564696]
[1755030332893,2.42119985,119970.0,119960.0,0.24564696]
[1755030333903,1.96358127,119970.0,119960.0,0.24564696]
[1755030334106,2.42219985,119970.0,119960.0,0.24564696]
[1755030334308,2.42319985,119970.0,119960.0,0.24564696]
[1755030335303,2.06239985,119970.0,119960.0,0.24564696]
[1755030336105,1.52043057,119970.0,119960.0,0.24564696]
[1755030336498,2.06239985,119970.0,119960.0,0.24564696]
[1755030336699,1.97904915,119970.0,119960.0,0.24564696]
[1755030338205,1.52043057,119970.0,119960.0,0.24564696]
[1755030338406,1.97904915,119970.0,119960.0,0.24564696]
[1755030338801,1.502,119970.0,119960.0,0.24564696]
[1755030339097,1.96061858,119970.0,119960.0,0.24564696]
[1755030339708,1.502,119970.0,119960.0,0.24564696]
[1755030339907,1.96061858,119970.0,119960.0,0.24564696]
[1755030341498,1.502,119970.0,119960.0,0.24564696]
[1755030341698,1.96061858,119970.0,119960.0,0.24564696]
[1755030342112,1.502,119970.0,119960.0,0.24564696]
[1755030342308,1.96061858,119970.0,119960.0,0.24564696]
[1755030342507,1.502,119970.0,119960.0,0.24564696]
[1755030343005,1.96061858,119970.0,119960.0,0.24564696]
[1755030344012,1.502,119970.0,119960.0,0.24564696]
[1755030344313,1.96061858,119970.0,119960.0,0.24564696]
[1755030344912,1.502,119970.0,119960.0,0.24564696]
[1755030345109,1.96061858,119970.0,119960.0,0.24564696]
[1755030346912,1.502,119970.0,119960.0,0.24564696]
[1755030347109,1.96061858,119970.0,119960.0,0.24564696]
[1755030348814,1.502,119970.0,119960.0,0.24564696]
[1755030349013,1.96061858,119970.0,119960.0,0.24564696]
[1755030349914,1.502,119970.0,119960.0,0.24564696]
[1755030350214,1.96061858,119970.0,119960.0,0.24564696]
[1755030352420,1.502,119970.0,119960.0,0.24564696]
[1755030352718,1.96061858,119970.0,119960.0,0.24564696]
[1755030353015,1.502,119970.0,119960.0,0.24564696]
[1755030353426,1.95061198,119970.0,119960.0,0.24564696]
[1755030354115,1.4919934,119970.0,119960.0,0.24564696]
[1755030354316,1.95061198,119970.0,119960.0,0.24564696]
[1755030356720,1.4919934,119970.0,119960.0,0.24564696]
[1755030356920,1.95061198,119970.0,119960.0,0.24564696]
[1755030360419,1.95061198,119970.0,119960.0,0.09163696]
[1755030360420,2.03396288,119970.0,119960.0,0.09163696]
[1755030360623,2.03396288,119970.0,119960.0,0.12461696]
[1755030360820,2.03396288,119970.0,119960.0,0.09163696]
[1755030361322,2.03396288,119970.0,119960.0,0.12461696]
[1755030361524,1.5753443,119970.0,119960.0,0.12461696]
[1755030361715,2.03396288,119970.0,119960.0,0.12461696]
[1755030362323,2.39476288,119970.0,119960.0,0.12461696]
[1755030362526,2.39476288,119970.0,119960.0,0.0833577]
[1755030362527,3.40928288,119970.0,119960.0,0.0833577]
[1755030362718,3.40928288,119970.0,119950.0,0.2500861]
[1755030362719,0.0833579,119960.0,119950.0,0.3334486]
[1755030363023,1.36139506,119960.0,119950.0,0.3334486]
[1755030363213,1.36139506,119960.0,119950.0,0.3664286]
[1755030363414,0.89276898,119960.0,119950.0,0.3664286]
[1755030363609,0.4341504,119960.0,119950.0,0.3664286]
[1755030363815,0.89276898,119960.0,119950.0,0.3664286]
[1755030364118,0.89276898,119960.0,119950.0,0.37487775]
[1755030367627,0.4341504,119960.0,119950.0,0.37487775]
[1755030367821,0.89276898,119960.0,119950.0,0.37487775]
[1755030368826,0.4341504,119960.0,119950.0,0.37487775]
[1755030369030,0.89276898,119960.0,119950.0,0.37487775]
[1755030370724,0.4341504,119960.0,119950.0,0.37487775]
[1755030371225,0.45861858,119960.0,119950.0,0.37487775]
[1755030371425,0.90277638,119960.0,119950.0,0.47286775]
[1755030371627,0.90277638,119960.0,119950.0,0.49417775]
[1755030373333,0.89276884,119960.0,119950.0,0.49417775]
[1755030374033,0.90277638,119960.0,119950.0,0.49417775]
[1755030376327,1.36139496,119960.0,119950.0,0.43605775]
[1755030376536,1.46139496,119960.0,119950.0,0.43605775]
[1755030377233,1.00277638,119960.0,119950.0,0.43605775]
[1755030377434,1.46139496,119960.0,119950.0,0.43605775]
[1755030377630,1.48020601,119960.0,119950.0,0.43605775]
[1755030378429,1.48020601,119960.0,119950.0,0.17517275]
[1755030379134,1.48020601,119960.0,119950.0,0.1667236]
[1755030379835,0.56296885,119960.0,119950.0,0.1667236]
[1755030380132,1.48020601,119960.0,119950.0,0.1667236]
[1755030382640,1.48020601,119960.0,119950.0,0.1997036]
[1755030383132,0.56296885,119960.0,119950.0,0.1997036]
[1755030383327,1.48020601,119960.0,119950.0,0.1997036]
[1755030384839,1.47019763,119960.0,119950.0,0.1997036]
[1755030386338,1.42019763,119960.0,119950.0,0.1997036]
[1755030386538,1.42019763,119960.0,119950.0,0.3190036]
[1755030386734,0.45296047,119960.0,119950.0,0.3190036]
[1755030387242,0.91157905,119960.0,119950.0,0.3190036]
[1755030387738,0.91157905,119960.0,119950.0,0.2608836]
[1755030387937,0.91157905,119960.0,119950.0,0.3190036]
[1755030388641,1.49019763,119960.0,119950.0,0.1997036]
[1755030389244,1.49019763,119960.0,119950.0,0.1163449]
[1755030389444,2.49399763,119960.0,119950.0,0.1163449]
[1755030390950,1.57676047,119960.0,119950.0,0.1163449]
[1755030391247,2.49399763,119960.0,119950.0,0.1163449]
[1755030391734,2.49399763,119960.0,119950.0,0.2311349]
[1755030391938,1.57676047,119960.0,119950.0,0.2311349]
[1755030392241,2.49399763,119960.0,119950.0,0.2311349]
[1755030393136,2.49399763,119960.0,119950.0,0.1163449]
[1755030394744,2.49399763,119960.0,119950.0,0.0833649]
[1755030394950,1.5833649,119950.0,119940.0,0.37615135]
[1755030395144,2.49277487,119950.0,119940.0,0.37615135]
[1755030395343,2.49277487,119950.0,119940.0,0.3678606]
[1755030396045,2.49277487,119950.0,119940.0,0.2844895]
[1755030396648,2.49277487,119950.0,119940.0,0.2021184]
[1755030397343,2.49277487,119950.0,119940.0,0.2612384]
[1755030397544,2.49277487,119950.0,119940.0,0.3156584]
[1755030398641,2.49277487,119950.0,119940.0,0.2612384]
[1755030398849,2.49277487,119950.0,119930.0,0.17530733]
[1755030398850,0.0833745,119940.0,119930.0,0.0001]
[1755030399051,2.48189166,119940.0,119930.0,0.03448]
[1755030399342,2.50038281,119940.0,119930.0,0.1178614]
[1755030399546,2.04176423,119940.0,119930.0,0.1178614]
[1755030400250,1.58314565,119940.0,119930.0,0.1178614]
[1755030400440,2.50038281,119940.0,119930.0,0.0001]
[1755030400642,0.0833816,119930.0,119920.0,0.2011547]
[1755030400842,1.48141876,119930.0,119920.0,0.2011547]
[1755030401450,1.0883852,119930.0,119920.0,0.2602747]
[1755030401651,1.0883852,119930.0,119920.0,0.3146947]
[1755030401844,0.9683852,119930.0,119920.0,0.3146947]
[1755030402043,0.9683852,119930.0,119920.0,0.3156947]
[1755030402449,0.8850036,119930.0,119920.0,0.3156947]
[1755030402650,0.9683852,119930.0,119920.0,0.3156947]
[1755030402950,0.9683852,119930.0,119920.0,0.3176947]
[1755030403148,0.8850036,119930.0,119920.0,0.3176947]
[1755030403450,0.42638502,119930.0,119920.0,0.3176947]
[1755030403654,0.3608,119930.0,119920.0,0.3176947]
[1755030404150,0.81941858,119930.0,119920.0,0.3176947]
[1755030404350,0.3608,119930.0,119920.0,0.3176947]
[1755030404541,0.81941858,119930.0,119920.0,1.3158547]
[1755030405252,0.45861858,119930.0,119920.0,1.3158547]
[1755030406146,0.46266565,119940.0,119920.0,1.3938298]
[1755030406147,0.37929115,119940.0,119920.0,1.3938298]
[1755030406351,0.82790074,119940.0,119930.0,0.2313029]
[1755030406649,0.36928216,119940.0,119930.0,0.2313029]
[1755030407255,0.01849115,119940.0,119930.0,0.68992148]
[1755030407752,0.01849115,119940.0,119930.0,0.2313029]
[1755030408048,0.01849115,119940.0,119930.0,0.5921029]
[1755030409058,0.3608,119950.0,119940.0,0.2312954]
[1755030409254,0.45861858,119950.0,119940.0,1.2280154]
[1755030409751,0.92893173,119960.0,119950.0,0.2312884]
[1755030410152,0.84556963,119960.0,119950.0,0.2312884]
[1755030410354,0.83822963,119960.0,119950.0,0.23951534]
[1755030410555,0.47742963,119960.0,119950.0,0.23951534]
[1755030411358,0.46061858,119960.0,119950.0,0.23951534]
[1755030412652,0.46795858,119960.0,119950.0,0.23951534]
[1755030413053,0.46795858,119960.0,119950.0,0.16333534]
[1755030413253,0.47254858,119960.0,119950.0,0.23951534]
[1755030413452,0.46795858,119960.0,119950.0,0.23951534]
[1755030414065,1.96795858,119960.0,119950.0,0.23951534]
[1755030414553,2.05132008,119960.0,119950.0,0.23951534]
[1755030414748,2.41212008,119960.0,119950.0,0.23951534]
[1755030415150,2.41671008,119960.0,119950.0,0.23951534]
[1755030416065,2.87532866,119960.0,119950.0,0.23951534]
[1755030416255,2.41671008,119960.0,119950.0,0.23951534]
[1755030416454,2.40478008,119960.0,119950.0,0.23951534]
[1755030416856,0.91012008,119960.0,119950.0,0.23951534]
[1755030417258,0.4515015,119960.0,119950.0,0.23951534]
[1755030417458,0.91012008,119960.0,119950.0,0.23951534]
[1755030417858,2.41471008,119960.0,119950.0,0.18509534]
[1755030418362,1.9560915,119960.0,119950.0,0.18509534]
[1755030418551,2.87332866,119960.0,119950.0,0.14113534]
[1755030418758,2.41471008,119960.0,119950.0,0.14113534]
[1755030419865,1.9560915,119960.0,119950.0,0.14113534]
[1755030420160,1.87273,119960.0,119950.0,0.24267534]
[1755030420355,2.41404998,119960.0,119950.0,0.24267534]
[1755030421457,1.87207,119960.0,119950.0,0.24267534]
[1755030421663,2.32675858,119960.0,119950.0,0.24267534]
[1755030422357,1.86814,119960.0,119950.0,0.24267534]
[1755030422562,2.32675858,119960.0,119950.0,0.24267534]
[1755030422963,2.33068858,119960.0,119950.0,0.24267534]
[1755030423362,2.41405008,119960.0,119950.0,0.24267534]
[1755030423559,2.41405008,119960.0,119950.0,0.12597534]
[1755030423764,2.87266866,119960.0,119950.0,0.12704534]
[1755030424270,2.99266866,119960.0,119950.0,0.12704534]
[1755030424466,2.53405008,119960.0,119950.0,0.12704534]
[1755030425062,2.41405008,119960.0,119950.0,0.12704534]
[1755030425366,2.41405008,119960.0,119950.0,0.20053534]
[1755030425561,2.53405008,119960.0,119950.0,0.20053534]
[1755030425767,2.41405008,119960.0,119950.0,0.24454534]
[1755030427170,2.41405008,119960.0,119950.0,0.12704534]
[1755030427571,1.8608,119960.0,119950.0,0.24454534]
[1755030427766,1.8608,119960.0,119950.0,1.23342534]
[1755030428664,2.31941858,119960.0,119950.0,1.23342534]
[1755030428974,1.8608,119960.0,119950.0,1.23342534]
[1755030429168,2.31941858,119960.0,119950.0,1.23342534]
[1755030429865,1.8608,119960.0,119950.0,1.23342534]
[1755030430062,2.31941858,119960.0,119950.0,1.23342534]
[1755030431970,1.8608,119960.0,119950.0,1.23342534]
[1755030432165,2.31941858,119960.0,119950.0,1.23342534]
[1755030433165,2.31941858,119960.0,119950.0,1.17527534]
[1755030433166,2.40278088,119960.0,119950.0,1.17527534]
[1755030433367,2.40671088,119960.0,119950.0,1.11592534]
[1755030433564,2.96532946,119960.0,119950.0,1.08047534]
[1755030433870,3.95196946,119960.0,119950.0,0.09159534]
[1755030434065,2.35196946,119960.0,119950.0,0.00822694]
[1755030434259,2.35196946,119960.0,119940.0,1.1888365]
[1755030434260,0.0896593,119950.0,119940.0,1.1888365]
[1755030434460,0.44438105,119950.0,119940.0,0.0833711]
[1755030434665,0.90299963,119950.0,119940.0,0.0833711]
[1755030434865,1.02299963,119950.0,119940.0,0.1188211]
[1755030435570,0.90299963,119950.0,119940.0,0.1188211]
[1755030436176,0.44438105,119950.0,119940.0,0.1188211]
[1755030436378,1.00299963,119950.0,119940.0,0.1188211]
[1755030436584,1.00299963,119950.0,119940.0,0.12732597]
[1755030437584,1.00299963,119950.0,119940.0,0.09187597]
[1755030437984,1.00299963,119950.0,119940.0,0.12732597]
[1755030439385,0.54438105,119950.0,119940.0,0.12732597]
[1755030439585,1.00299963,119950.0,119940.0,0.12732597]
[1755030439787,0.90299963,119950.0,119940.0,0.12732597]
[1755030439984,0.82963858,119950.0,119940.0,0.24482597]
[1755030441986,0.82963858,119950.0,119940.0,0.2363211]
[1755030442487,0.91300788,119950.0,119940.0,0.2363211]
[1755030442690,0.93191588,119950.0,119940.0,0.2363211]
[1755030442882,0.93191588,119950.0,119940.0,0.24460739]
[1755030443183,0.92798588,119950.0,119940.0,0.22038739]
[1755030443390,0.84461658,119950.0,119940.0,0.24460739]
[1755030443589,0.92798588,119950.0,119940.0,0.24460739]
[1755030443789,0.93191588,119950.0,119940.0,0.24460739]
[1755030444089,0.84854658,119950.0,119940.0,0.24460739]
[1755030444291,0.93191588,119950.0,119940.0,0.24460739]
[1755030445197,0.4732973,119950.0,119940.0,0.24460739]
[1755030445492,0.93191588,119950.0,119940.0,0.24460739]
[1755030447290,0.93191588,119950.0,119940.0,0.13121739]
[1755030447491,0.93191588,119950.0,119940.0,0.12710739]
[1755030447690,1.04191588,119950.0,119940.0,0.12710739]
[1755030448086,1.03191588,119950.0,119940.0,0.12710739]
[1755030449190,1.03191588,119950.0,119940.0,0.12625739]
[1755030450098,0.93191588,119950.0,119940.0,0.12625739]
[1755030450297,1.04191588,119950.0,119940.0,0.12625739]
[1755030451399,1.02191588,119950.0,119940.0,0.09165739]
[1755030451590,0.5632973,119950.0,119940.0,0.09165739]
[1755030451790,0.93191588,119950.0,119940.0,0.12625739]
[1755030452791,0.4732973,119950.0,119940.0,0.12625739]
[1755030452995,0.93191588,119950.0,119940.0,0.12625739]
[1755030454800,0.4732973,119950.0,119940.0,0.15892739]
[1755030455096,0.93191588,119950.0,119940.0,0.19821739]
[1755030455890,0.93191588,119950.0,119940.0,0.1899311]
[1755030456298,0.93191588,119950.0,119940.0,0.1339011]
[1755030456595,0.93191588,119950.0,119940.0,0.1179711]
[1755030457804,1.04191588,119950.0,119940.0,0.1179711]
[1755030457993,1.04191588,119950.0,119940.0,0.0833711]
[1755030458189,1.04191588,119950.0,119940.0,0.1179711]
[1755030458497,0.0906062,119940.0,119930.0,0.34184489]
[1755030458704,1.02002478,119940.0,119930.0,0.29306219]
[1755030458999,0.91002478,119940.0,119930.0,0.29306219]
[1755030459599,0.91002478,119940.0,119930.0,0.40766219]
[1755030460303,0.91002478,119940.0,119930.0,0.40866219]
[1755030460504,0.4514062,119940.0,119930.0,0.40866219]
[1755030460801,0.91002478,119940.0,119930.0,0.41066219]
[1755030461201,1.02002478,119940.0,119930.0,0.2258554]
[1755030461400,1.02002478,119940.0,119930.0,0.1697654]
[1755030461599,1.02002478,119940.0,119930.0,0.2043654]
[1755030463309,1.99602478,119940.0,119930.0,0.2043654]
[1755030463509,1.5374062,119940.0,119930.0,0.2043654]
[1755030463909,1.99602478,119940.0,119930.0,0.2043654]
[1755030465007,1.99602478,119940.0,119930.0,0.1697654]
[1755030465208,1.99602478,119940.0,119930.0,0.003]
[1755030465510,1.5359262,119940.0,119930.0,0.003]
[1755030465710,1.99454478,119940.0,119930.0,0.003]
[1755030466207,1.5359262,119940.0,119930.0,0.003]
[1755030466399,1.99454478,119940.0,119930.0,0.003]
[1755030466807,1.99554478,119940.0,119930.0,0.001]
[1755030466999,0.0833833,119930.0,119920.0,0.2847703]
[1755030467205,1.04866882,119930.0,119920.0,0.2847703]
[1755030467706,0.59005024,119930.0,119920.0,0.2847703]
[1755030467902,1.04866882,119930.0,119920.0,0.2847703]
[1755030468300,0.0906203,119920.0,119910.0,0.40766806]
[1755030468503,1.47865746,119920.0,119910.0,0.40766806]
[1755030468910,1.02003888,119920.0,119910.0,0.40766806]
[1755030469210,0.5614203,119920.0,119910.0,0.32427286]
[1755030469515,1.47587746,119920.0,119910.0,0.32427286]
[1755030469709,0.4486403,119920.0,119910.0,0.32427286]
[1755030469906,0.90725888,119920.0,119910.0,0.32427286]
[1755030470101,0.90725888,119920.0,119910.0,0.32627286]
[1755030470306,0.4486403,119920.0,119910.0,0.32727286]
[1755030470504,0.90725888,119920.0,119910.0,0.32727286]
[1755030471109,0.4486403,119920.0,119910.0,0.32727286]
[1755030471416,0.90725888,119920.0,119910.0,0.32727286]
[1755030471718,0.4486403,119920.0,119910.0,0.32727286]
[1755030471903,0.36525,119920.0,119910.0,0.32727286]
[1755030472109,0.3608,119920.0,119910.0,0.32727286]
[1755030472609,0.4441903,119920.0,119910.0,0.32727286]
[1755030473211,0.3608,119920.0,119910.0,0.32727286]
[1755030473511,0.81941858,119920.0,119910.0,0.32727286]
[1755030473717,0.90725888,119920.0,119910.0,0.32727286]
[1755030474306,0.4486403,119920.0,119910.0,0.32727286]
[1755030474614,0.90725888,119920.0,119910.0,0.32727286]
[1755030476615,1.47865746,119920.0,119910.0,0.04588386]
[1755030477014,2.44981746,119920.0,119910.0,0.003]
[1755030477317,2.44981746,119920.0,119910.0,0.0114685]
[1755030477718,2.44981746,119920.0,119910.0,0.003]
[1755030479621,2.45081746,119920.0,119910.0,0.001]
[1755030479928,2.45081746,119920.0,119910.0,0.0843971]
[1755030480222,0.083404,119900.0,119890.0,0.4016545]
[1755030480410,0.90282258,119900.0,119890.0,0.4016545]
[1755030480612,1.02282258,119900.0,119890.0,0.4016545]
[1755030480814,0.97111737,119900.0,119890.0,0.4016545]
[1755030481019,1.33191737,119900.0,119890.0,0.2020358]
[1755030481219,0.87329879,119900.0,119890.0,0.1186271]
[1755030481522,1.40191737,119900.0,119890.0,0.1155271]
[1755030481916,0.94329879,119900.0,119890.0,0.1155271]
[1755030482111,1.40191737,119900.0,119890.0,0.1155271]
[1755030482939,1.40191737,119900.0,119890.0,0.1175271]
[1755030484129,1.40191737,119900.0,119890.0,0.003]
[1755030484423,1.40191737,119900.0,119890.0,0.0864108]
[1755030485221,1.40191737,119900.0,119890.0,0.003]
[1755030485420,1.40191737,119900.0,119890.0,0.0864108]
[1755030486019,1.40191737,119900.0,119890.0,0.003]
[1755030486222,0.94329879,119900.0,119890.0,0.0864108]
[1755030486422,1.40191737,119900.0,119890.0,0.1175308]
[1755030488015,1.40191737,119900.0,119890.0,0.03412]
[1755030488417,1.40191737,119900.0,119890.0,0.0864108]
[1755030489416,1.40191737,119900.0,119890.0,0.1175308]
[1755030492629,1.40191737,119900.0,119890.0,0.03412]
[1755030492829,1.40191737,119900.0,119890.0,0.1175308]
[1755030493130,0.94329879,119900.0,119890.0,0.1175308]
[1755030493331,1.40191737,119900.0,119890.0,0.1175308]
[1755030494632,1.40191737,119900.0,119890.0,0.1543508]
[1755030494932,1.40191737,119900.0,119890.0,0.1332408]
[1755030495133,1.40191737,119900.0,119890.0,0.1175308]
[1755030495631,0.94329879,119900.0,119890.0,0.1175308]
[1755030495930,1.40191737,119900.0,119890.0,0.1175308]
[1755030498234,1.40191737,119900.0,119890.0,0.03412]
[1755030499329,0.94329879,119900.0,119890.0,0.003]
[1755030499538,1.40191737,119900.0,119890.0,0.03412]
[1755030500223,1.40191737,119900.0,119890.0,0.003]
[1755030500430,1.40191737,119900.0,119890.0,0.1175279]
[1755030500631,0.73989479,119900.0,119890.0,0.2337379]
[1755030500938,0.37909479,119900.0,119890.0,0.69235648]
[1755030501138,2.28331858,119910.0,119900.0,0.0834009]
[1755030501337,2.28331858,119910.0,119900.0,0.2307309]
[1755030501635,1.86673268,119910.0,119900.0,0.2307309]
[1755030501841,0.90281268,119910.0,119900.0,0.2307309]
[1755030502046,1.86665268,119910.0,119900.0,0.2307309]
[1755030502438,0.90281268,119910.0,119900.0,0.2307309]
[1755030502642,1.86657268,119910.0,119900.0,0.2307309]
[1755030502936,1.78301858,119910.0,119900.0,0.2307309]
[1755030503142,1.86641268,119910.0,119900.0,0.2307309]
[1755030504935,1.4077941,119910.0,119900.0,0.2307309]
[1755030505139,1.86641268,119910.0,119900.0,0.2307309]
[1755030505842,0.4441941,119910.0,119900.0,0.2307309]
[1755030506048,1.86565268,119910.0,119900.0,0.2307309]
[1755030506548,1.86533268,119910.0,119900.0,0.2307309]
[1755030506748,1.4067141,119910.0,119900.0,0.2307309]
[1755030507050,1.86533268,119910.0,119900.0,0.2307309]
[1755030507446,0.4441941,119910.0,119900.0,0.2307309]
[1755030507647,1.86517268,119910.0,119900.0,0.2307309]
[1755030509249,1.4065541,119910.0,119900.0,0.2307309]
[1755030509450,1.86517268,119910.0,119900.0,0.2307309]
[1755030509644,0.90281268,119910.0,119900.0,0.2307309]
[1755030509846,1.86425268,119910.0,119900.0,0.2307309]
[1755030510747,1.4056341,119910.0,119900.0,0.2307309]
[1755030510951,1.86425268,119910.0,119900.0,0.2307309]
[1755030513551,1.4056341,119910.0,119900.0,0.2307309]
[1755030513955,0.90281268,119910.0,119900.0,0.2307309]
[1755030514251,1.86297268,119910.0,119900.0,0.2307309]
[1755030514840,1.86297268,119910.0,119900.0,0.14733]
[1755030515055,1.86297268,119910.0,119900.0,0.2307314]
[1755030516354,1.86297268,119910.0,119900.0,0.0834014]
[1755030516655,1.97297268,119910.0,119900.0,0.0834014]
[1755030516855,1.97297268,119910.0,119900.0,0.1172514]
[1755030517550,1.97297268,119910.0,119890.0,0.03385]
[1755030517551,0.0834015,119900.0,119890.0,0.03385]
[1755030517854,0.90282008,119900.0,119890.0,0.1172584]
[1755030518051,1.01282008,119900.0,119890.0,0.1172584]
[1755030518951,0.5542015,119900.0,119890.0,0.1172584]
[1755030519146,1.98150008,119900.0,119890.0,0.1172584]
[1755030519346,1.86150008,119900.0,119890.0,0.1172584]
[1755030519547,1.97150008,119900.0,119890.0,0.1172584]
[1755030520258,0.0834084,119890.0,119880.0,0.1172607]
[1755030520460,1.00281361,119890.0,119880.0,0.1172654]
[1755030520666,1.46143219,119890.0,119880.0,0.1172654]
[1755030521555,1.46143219,119890.0,119880.0,0.03485]
[1755030521757,1.46143219,119890.0,119880.0,0.1212654]
[1755030523858,1.46143219,119890.0,119880.0,0.1172654]
[1755030526363,1.00281361,119890.0,119880.0,0.1172654]
[1755030526755,1.46143219,119890.0,119880.0,0.1172654]
[1755030527056,1.46143219,119890.0,119880.0,0.03385]
[1755030527260,1.46143219,119890.0,119880.0,0.1172654]
[1755030528162,1.46143219,119890.0,119880.0,0.03385]
[1755030528762,1.95849361,119890.0,119880.0,0.03385]
[1755030529462,1.95849361,119890.0,119880.0,0.1172653]
[1755030531969,1.95849361,119890.0,119880.0,0.03385]
[1755030532169,1.95849361,119890.0,119880.0,0.1172653]
[1755030532557,1.95849361,119890.0,119880.0,0.03385]
[1755030532955,1.49987503,119890.0,119880.0,0.03385]
[1755030533153,1.95849361,119890.0,119880.0,0.03385]
[1755030533363,2.41711219,119890.0,119880.0,0.03385]
[1755030534555,0.0834223,119870.0,119860.0,0.3651558]
[1755030534756,1.90680088,119870.0,119860.0,0.3430058]
[1755030534961,1.90680088,119870.0,119860.0,0.3990058]
[1755030535269,2.26760088,119870.0,119860.0,0.3990058]
[1755030535464,2.26760088,119870.0,119860.0,0.4073826]
[1755030535966,2.26760088,119870.0,119860.0,0.324954]
[1755030536168,1.87524079,119870.0,119860.0,0.324954]
[1755030536466,2.33385937,119870.0,119860.0,0.324954]
[1755030537163,1.87524079,119870.0,119860.0,0.327954]
[1755030537369,2.33385937,119870.0,119860.0,0.327954]
[1755030538265,2.33385937,119870.0,119860.0,0.0123768]
[1755030538462,2.33385937,119870.0,119860.0,0.1296561]
[1755030538870,2.33385937,119870.0,119860.0,0.2235061]
[1755030539067,2.33385937,119870.0,119860.0,0.1400768]
[1755030539268,2.33385937,119870.0,119860.0,0.1610968]
[1755030539465,2.33385937,119870.0,119860.0,0.1600968]
[1755030539865,2.33385937,119870.0,119860.0,0.15172]
[1755030540072,0.92128079,119870.0,119860.0,0.04958]
[1755030540273,2.33265937,119870.0,119860.0,0.002]
[1755030542570,2.33265937,119870.0,119830.0,0.2276959]
[1755030542571,0.0834432,119840.0,119830.0,0.2276959]
[1755030542873,2.43296036,119840.0,119830.0,0.1286059]
[1755030543068,1.48148036,119840.0,119830.0,0.1286059]
[1755030543264,1.95422178,119840.0,119830.0,0.23598772]
[1755030543465,2.42284036,119840.0,119830.0,0.23598772]
[1755030543775,2.42284036,119840.0,119830.0,0.23698772]
[1755030544068,1.96422178,119840.0,119830.0,0.23998772]
[1755030545873,1.96422178,119840.0,119830.0,0.2316959]
[1755030546777,1.5056032,119840.0,119830.0,0.24003388]
[1755030547074,1.96422178,119840.0,119830.0,0.24003388]
[1755030547571,1.85310178,119840.0,119830.0,0.24003388]
[1755030547762,1.96310178,119840.0,119830.0,0.24003388]
[1755030547969,0.90286178,119840.0,119830.0,0.24003388]
[1755030548170,1.85298178,119840.0,119830.0,0.24003388]
[1755030548669,0.4442432,119840.0,119830.0,0.24003388]
[1755030548871,0.90286178,119840.0,119830.0,0.24003388]
[1755030551873,0.3608,119840.0,119830.0,0.24003388]
[1755030552878,0.3608,119840.0,119830.0,0.86554846]
[1755030553072,1.78666596,119860.0,119850.0,0.05879]
[1755030553271,0.83798596,119860.0,119850.0,0.2276863]
[1755030553573,1.78658596,119860.0,119850.0,0.2276863]
[1755030553778,0.83798596,119860.0,119850.0,0.2276863]
[1755030554778,0.92141526,119860.0,119850.0,0.2276863]
[1755030555376,0.83798596,119860.0,119850.0,0.2276863]
[1755030558380,0.37936738,119860.0,119850.0,0.2276863]
[1755030558579,0.83798596,119860.0,119850.0,0.2276863]
[1755030558979,1.78490596,119860.0,119850.0,0.2276863]
[1755030559382,0.83798596,119860.0,119850.0,0.2276863]
[1755030559582,1.78486596,119860.0,119850.0,0.2276863]
[1755030560784,1.42406596,119860.0,119850.0,0.2276863]
[1755030561374,0.47718596,119860.0,119850.0,0.2276863]
[1755030561781,1.42322596,119860.0,119850.0,0.2276863]
[1755030563579,1.78402596,119860.0,119850.0,0.2276863]
[1755030563986,1.42322596,119860.0,119850.0,0.2276863]
[1755030564287,1.78402596,119860.0,119850.0,0.2276863]
[1755030564583,0.83798596,119860.0,119850.0,0.2276863]
[1755030564775,1.78346596,119860.0,119850.0,0.2276863]
[1755030564975,0.83798596,119860.0,119850.0,0.2276863]
[1755030565386,0.37936738,119860.0,119850.0,0.2276863]
[1755030565591,0.47718596,119860.0,119850.0,0.2276863]
[1755030565778,1.42214596,119860.0,119850.0,0.2276863]
[1755030565981,0.83798596,119860.0,119850.0,0.2276863]
[1755030566794,0.37936738,119860.0,119850.0,0.2276863]
[1755030567088,0.47718596,119860.0,119850.0,0.2276863]
[1755030567387,1.76401858,119870.0,119860.0,0.2276793]
[1755030567587,0.81941858,119870.0,119860.0,0.2276793]
[1755030568584,0.82041858,119870.0,119860.0,0.2276793]
[1755030568791,0.82241858,119870.0,119860.0,0.2276793]
[1755030569477,2.32241858,119870.0,119860.0,0.2276793]
[1755030570283,1.96161858,119870.0,119860.0,0.2276793]
[1755030570484,2.32241858,119870.0,119860.0,0.2276793]
[1755030570681,2.04504088,119870.0,119860.0,0.2275393]
[1755030570875,2.32241858,119870.0,119860.0,0.2275393]
[1755030571078,1.8638,119870.0,119860.0,0.2275393]
[1755030571277,2.32241858,119870.0,119860.0,0.2275393]
[1755030573784,2.40584088,119870.0,119860.0,0.2275393]
[1755030574587,2.32241858,119870.0,119860.0,0.2275393]
[1755030575182,3.26501858,119870.0,119860.0,0.2275393]
[1755030576785,2.32241858,119870.0,119860.0,0.2275393]
[1755030576979,1.8638,119870.0,119860.0,0.2275393]
[1755030577180,2.32241858,119870.0,119860.0,0.2275393]
[1755030578085,2.40584088,119870.0,119860.0,0.2275393]
[1755030578286,2.32241858,119870.0,119860.0,0.2275393]
[1755030579685,1.8638,119870.0,119860.0,0.2275393]
[1755030579887,2.32241858,119870.0,119860.0,0.2275393]
[1755030580584,2.40584088,119870.0,119860.0,0.2275393]
[1755030580889,2.51584088,119870.0,119860.0,0.0834293]
[1755030582689,2.0572223,119870.0,119860.0,0.0834293]
[1755030582992,2.51584088,119870.0,119860.0,0.0834293]
[1755030583585,2.51584088,119870.0,119860.0,0.1134593]
[1755030584684,2.0572223,119870.0,119860.0,0.1134593]
[1755030584889,2.32241858,119870.0,119860.0,0.1134593]
[1755030585094,2.32241858,119870.0,119860.0,0.2024993]
[1755030585290,2.32241858,119870.0,119860.0,0.2252193]
[1755030585894,2.40584088,119870.0,119860.0,0.2252193]
[1755030586195,2.51584088,119870.0,119860.0,0.2252193]
[1755030586494,2.51584088,119870.0,119860.0,0.1134593]
[1755030586892,2.51584088,119870.0,119860.0,0.0834293]
[1755030588794,0.0834293,119860.0,119850.0,0.2803345]
[1755030588991,1.97148788,119860.0,119850.0,0.1668682]
[1755030589193,1.97148788,119860.0,119850.0,0.1968982]
[1755030592114,1.97148828,119860.0,119850.0,0.1968982]
[1755030593100,1.29828,119860.0,119850.0,0.1968982]
[1755030593307,1.75689858,119860.0,119850.0,0.1968982]
[1755030595911,1.96032828,119860.0,119850.0,0.1968982]
[1755030596111,1.96032828,119860.0,119850.0,0.1668682]
[1755030597115,1.96032828,119860.0,119850.0,0.1968982]
[1755030597312,1.5017097,119860.0,119850.0,0.1968982]
[1755030597514,0.3608,119860.0,119850.0,0.1968982]
[1755030597817,0.3608,119860.0,119850.0,0.3086582]
[1755030598018,0.35078417,119860.0,119850.0,0.3086582]
[1755030598210,0.35078417,119860.0,119850.0,0.76727678]
[1755030598411,0.3608,119870.0,119860.0,0.22522]